{"text_format":"1","workbook":"xlsx","n_sheets":2,"sheets":["Pairings","Language"],"not_rendered":{"charts":0,"images":2,"macros":1,"external_links":0,"defined_names":0,"comments":0,"pivot_tables":0},"unopened":[],"bounds":{"document_bytes":16777216,"sheet_cells":100000,"rows_first":2000,"rows_last":500,"rows_between":2000,"halvings":0,"cell_chars":16384,"cell_head_chars":4096},"cells_cut":0,"cells_raw":0,"read":"whole","date_system":"1900"}

{"sheet":"Pairings","index":0,"n_rows":383,"n_cols":35,"rows_kept":383,"cut":false,"hidden":false,"merged":[[44,6,44,10],[45,6,45,10],[42,7,42,10],[1,3,1,4],[0,3,0,10],[13,7,14,8],[15,7,16,8],[0,28,0,31],[17,7,19,8],[20,7,23,8],[24,7,27,8],[1,18,1,31],[1,12,1,17],[4,10,17,10]]}
[null,null,null,{"$f":"Language!$E$7","v":"Create matchups"},null,null,null,null,null,null,null,null,null,null,null,null,null,null,null,null,null,null,null,null,null,null,null,null,"Version 1.1\n2024-01-04"]
[null,null,null,{"$f":"Language!$E$8","v":"Matchups"},null,null,null,null,null,null,null,null,{"$f":"Language!$E$9","v":"Team"},null,null,null,null,null,{"$f":"Language!$E$10","v":"1 = home game     0 = away game"}]
[]
[null,1,null,5,2,null,null,{"$f":"Language!$E$12","v":"Number of teams:"},12,null,null,null,1,2,3,4,5,6,7,8,9,10,11,12,13,14,15,16,17,18,19,20,null,null,true]
[null,2,null,12,6,null,null,null,null,null,{"$f":"Language!$E$17&\"    \"","v":"Match week    "},1,{"$f":"IF(OR(M$4>$I$4,$L5>$I$9,AND($L5>$I$9/2,$AI$4=FALSE)),\"\",IF(COUNTIF(OFFSET($D$4,INT($I$4/2)*($L5-1),0,INT($I$4/2),2),M$4)=0,\"-\",COUNTIF(OFFSET($D$4,INT($I$4/2)*($L5-1),0,INT($I$4/2),1),M$4)))","v":1},0,0,0,1,0,1,0,0,1,{"$f":"IF(OR(W$4>$I$4,$L5>$I$9,AND($L5>$I$9/2,$AI$4=FALSE)),\"\",IF(COUNTIF(OFFSET($D$4,INT($I$4/2)*($L5-1),0,INT($I$4/2),2),W$4)=0,\"-\",COUNTIF(OFFSET($D$4,INT($I$4/2)*($L5-1),0,INT($I$4/2),1),W$4)))","v":1},1,"","","","","","","",""]
[null,3,null,10,4,null,null,{"$f":"Language!$E$13","v":"With return matches:"},null,null,null,2,0,0,1,1,0,1,0,1,1,0,0,1,"","","","","","","",""]
[null,4,null,11,3,null,null,null,null,null,null,3,1,1,0,0,1,0,1,0,0,1,1,0,"","","","","","","",""]
[null,5,null,1,8,null,null,{"$f":"Language!$E$14","v":"Random order:"},{"$f":"$I$12/$I$9","v":6},null,null,4,0,0,1,0,0,1,0,1,1,0,1,1,"","","","","","","",""]
[null,6,null,7,9,null,null,null,{"$f":"2*($I$4+MOD($I$4,2)-1)","v":22},null,null,5,1,1,0,1,1,0,1,0,0,1,0,0,"","","","","","","",""]
[null,7,null,12,5,null,null,{"$f":"Language!$E$15","v":"Number of match weeks:"},{"$f":"IF($AI$4,$I$9,$I$9/2)","v":22},null,null,6,0,0,1,0,0,1,1,0,1,0,1,1,"","","","","","","",""]
[null,8,null,4,2,null,null,{"$f":"Language!$E$16","v":"Number of matches:"},{"$f":"IF($AI$4,$I$12,$I$12/2)","v":132},null,null,7,1,1,0,1,1,0,0,1,0,1,0,0,"","","","","","","",""]
[null,9,null,6,11,null,null,null,{"$f":"$I$4*($I$4-1)","v":132},null,null,8,1,0,1,0,0,1,1,0,0,0,1,1,"","","","","","","",""]
[null,10,null,8,10,null,null,null,null,null,null,9,0,1,0,1,1,0,0,1,1,1,0,0,"","","","","","","",""]
[null,11,null,3,7,null,null,{"$f":"Language!$E$6","v":"Instructions"},null,null,null,10,1,0,0,0,0,1,1,0,0,1,1,1,"","","","","","","",""]
[null,12,null,9,1,null,null,null,null,null,null,11,{"$f":"IF(OR(M$4>$I$4,$L15>$I$9,AND($L15>$I$9/2,$AI$4=FALSE)),\"\",IF(COUNTIF(OFFSET($D$4,INT($I$4/2)*($L15-1),0,INT($I$4/2),2),M$4)=0,\"-\",COUNTIF(OFFSET($D$4,INT($I$4/2)*($L15-1),0,INT($I$4/2),1),M$4)))","v":0},1,1,1,1,0,0,1,1,0,{"$f":"IF(OR(W$4>$I$4,$L15>$I$9,AND($L15>$I$9/2,$AI$4=FALSE)),\"\",IF(COUNTIF(OFFSET($D$4,INT($I$4/2)*($L15-1),0,INT($I$4/2),2),W$4)=0,\"-\",COUNTIF(OFFSET($D$4,INT($I$4/2)*($L15-1),0,INT($I$4/2),1),W$4)))","v":0},0,"","","","","","","",""]
[null,13,null,5,4,null,null,{"$f":"Language!$E$25","v":"Enter the number of teams"},null,null,null,12,0,1,1,1,0,1,0,1,1,0,0,0,"","","","","","","",""]
[null,14,null,11,12,null,null,null,null,null,null,13,1,1,0,0,1,0,1,0,0,1,1,0,"","","","","","","",""]
[null,15,null,2,8,null,null,{"$f":"Language!$E$26","v":"Choose whether with or without return games"},null,null,null,14,0,0,1,1,0,1,0,1,1,0,0,1,"","","","","","","",""]
[null,16,null,7,6,null,null,null,null,null,null,15,1,1,0,1,1,0,1,0,0,1,0,0,"","","","","","","",""]
[null,17,null,10,9,null,null,null,null,null,null,16,0,0,1,0,0,1,0,1,1,0,1,1,"","","","","","","",""]
[null,18,null,1,3,null,null,{"$f":"Language!$E$27","v":"Choose whether random order (otherwise always the same order appears)"},null,null,null,17,1,1,0,1,1,0,0,1,0,1,0,0,"","","","","","","",""]
[null,19,null,11,5,null,null,null,null,null,null,18,0,0,1,0,0,1,1,0,1,0,1,1,"","","","","","","",""]
[null,20,null,8,4,null,null,null,null,null,null,19,0,1,0,1,1,0,0,1,1,1,0,0,"","","","","","","",""]
[null,21,null,12,7,null,null,null,null,null,null,20,1,0,1,0,0,1,1,0,0,0,1,1,"","","","","","","",""]
[null,22,null,9,2,null,null,{"$f":"Language!$E$28","v":"Copy the values in the green frame and paste them into the desired application"},null,null,null,21,{"$f":"IF(OR(M$4>$I$4,$L25>$I$9,AND($L25>$I$9/2,$AI$4=FALSE)),\"\",IF(COUNTIF(OFFSET($D$4,INT($I$4/2)*($L25-1),0,INT($I$4/2),2),M$4)=0,\"-\",COUNTIF(OFFSET($D$4,INT($I$4/2)*($L25-1),0,INT($I$4/2),1),M$4)))","v":0},1,1,1,1,0,0,1,1,0,{"$f":"IF(OR(W$4>$I$4,$L25>$I$9,AND($L25>$I$9/2,$AI$4=FALSE)),\"\",IF(COUNTIF(OFFSET($D$4,INT($I$4/2)*($L25-1),0,INT($I$4/2),2),W$4)=0,\"-\",COUNTIF(OFFSET($D$4,INT($I$4/2)*($L25-1),0,INT($I$4/2),1),W$4)))","v":0},0,"","","","","","","",""]
[null,23,null,6,1,null,null,null,null,null,null,22,1,0,0,0,0,1,1,0,0,1,1,1,"","","","","","","",""]
[null,24,null,3,10,null,null,null,null,null,null,23,"","","","","","","","","","","","","","","","","","","",""]
[null,25,null,5,8,null,null,null,null,null,null,24,"","","","","","","","","","","","","","","","","","","",""]
[null,26,null,7,11,null,null,null,null,null,null,25,"","","","","","","","","","","","","","","","","","","",""]
[null,27,null,4,9,null,null,null,null,null,null,26,"","","","","","","","","","","","","","","","","","","",""]
[null,28,null,1,12,null,null,null,null,null,null,27,"","","","","","","","","","","","","","","","","","","",""]
[null,29,null,2,3,null,null,null,null,null,null,28,"","","","","","","","","","","","","","","","","","","",""]
[null,30,null,10,6,null,null,null,null,null,null,29,"","","","","","","","","","","","","","","","","","","",""]
[null,31,null,7,5,null,null,null,null,null,null,30,"","","","","","","","","","","","","","","","","","","",""]
[null,32,null,9,8,null,null,null,null,null,null,31,{"$f":"IF(OR(M$4>$I$4,$L35>$I$9,AND($L35>$I$9/2,$AI$4=FALSE)),\"\",IF(COUNTIF(OFFSET($D$4,INT($I$4/2)*($L35-1),0,INT($I$4/2),2),M$4)=0,\"-\",COUNTIF(OFFSET($D$4,INT($I$4/2)*($L35-1),0,INT($I$4/2),1),M$4)))","v":""},"","","","","","","","","",{"$f":"IF(OR(W$4>$I$4,$L35>$I$9,AND($L35>$I$9/2,$AI$4=FALSE)),\"\",IF(COUNTIF(OFFSET($D$4,INT($I$4/2)*($L35-1),0,INT($I$4/2),2),W$4)=0,\"-\",COUNTIF(OFFSET($D$4,INT($I$4/2)*($L35-1),0,INT($I$4/2),1),W$4)))","v":""},"","","","","","","","",""]
[null,33,null,11,1,null,null,null,null,null,null,32,"","","","","","","","","","","","","","","","","","","",""]
[null,34,null,3,4,null,null,null,null,null,null,33,"","","","","","","","","","","","","","","","","","","",""]
[null,35,null,12,10,null,null,null,null,null,null,34,"","","","","","","","","","","","","","","","","","","",""]
[null,36,null,6,2,null,null,null,null,null,null,35,"","","","","","","","","","","","","","","","","","","",""]
[null,37,null,5,9,null,null,null,null,null,null,36,"","","","","","","","","","","","","","","","","","","",""]
[null,38,null,1,7,null,null,null,null,null,null,37,"","","","","","","","","","","","","","","","","","","",""]
[null,39,null,8,3,null,null,null,null,null,null,38,"","","","","","","","","","","","","","","","","","","",""]
[null,40,null,10,11,null,null,{"$f":"Language!$E$18","v":"Total:"},null,null,null,null,{"$f":"SUM(M5:M42)","v":11},{"$f":"SUM(N5:N42)","v":11},11,11,11,11,11,11,11,11,11,11,0,0,0,0,0,0,0,0]
[null,41,null,4,6]
[null,42,null,2,12,null,{"$f":"Language!$E$19","v":"Number of home games in the first half of the season:"},null,null,null,null,null,{"$f":"COUNTIF(OFFSET($D$4,0,0,$I$12/2,1),COLUMN(A3))","v":6},5,5,5,6,5,6,5,5,6,6,6,0,0,0,0,0,0,0,{"$f":"COUNTIF(OFFSET($D$4,0,0,$I$12/2,1),COLUMN(T2))","v":0}]
[null,43,null,1,5,null,{"$f":"Language!$E$20","v":"Number of home games in the second half of the season:"},null,null,null,null,null,{"$f":"COUNTIF(OFFSET($D$4,$I$12/2,0,$I$12/2,1),COLUMN(A3))","v":5},6,6,6,5,6,5,6,6,5,5,5,0,0,0,0,0,0,0,{"$f":"COUNTIF(OFFSET($D$4,$I$12/2,0,$I$12/2,1),COLUMN(T2))","v":0}]
[null,44,null,3,9]
[null,45,null,7,10]
[null,46,null,6,8]
[null,47,null,11,2]
[null,48,null,12,4]
[null,49,null,5,3]
[null,50,null,10,1]
[null,51,null,9,6]
[null,52,null,2,7]
[null,53,null,8,12]
[null,54,null,4,11]
[null,55,null,10,5]
[null,56,null,6,3]
[null,57,null,1,2]
[null,58,null,12,9]
[null,59,null,7,4]
[null,60,null,11,8]
[null,61,null,5,6]
[null,62,null,2,10]
[null,63,null,3,12]
[null,64,null,4,1]
[null,65,null,9,11]
[null,66,null,8,7]
[null,67,null,2,5]
[null,68,null,6,12]
[null,69,null,4,10]
[null,70,null,3,11]
[null,71,null,8,1]
[null,72,null,9,7]
[null,73,null,5,12]
[null,74,null,2,4]
[null,75,null,11,6]
[null,76,null,10,8]
[null,77,null,7,3]
[null,78,null,1,9]
[null,79,null,4,5]
[null,80,null,12,11]
[null,81,null,8,2]
[null,82,null,6,7]
[null,83,null,9,10]
[null,84,null,3,1]
[null,85,null,5,11]
[null,86,null,4,8]
[null,87,null,7,12]
[null,88,null,2,9]
[null,89,null,1,6]
[null,90,null,10,3]
[null,91,null,8,5]
[null,92,null,11,7]
[null,93,null,9,4]
[null,94,null,12,1]
[null,95,null,3,2]
[null,96,null,6,10]
[null,97,null,5,7]
[null,98,null,8,9]
[null,99,null,1,11]
[null,100,null,4,3]
[null,101,null,10,12]
[null,102,null,2,6]
[null,103,null,9,5]
[null,104,null,7,1]
[null,105,null,3,8]
[null,106,null,11,10]
[null,107,null,6,4]
[null,108,null,12,2]
[null,109,null,5,1]
[null,110,null,9,3]
[null,111,null,10,7]
[null,112,null,8,6]
[null,113,null,2,11]
[null,114,null,4,12]
[null,115,null,3,5]
[null,116,null,1,10]
[null,117,null,6,9]
[null,118,null,7,2]
[null,119,null,12,8]
[null,120,null,11,4]
[null,121,null,5,10]
[null,122,null,3,6]
[null,123,null,2,1]
[null,124,null,9,12]
[null,125,null,4,7]
[null,126,null,8,11]
[null,127,null,6,5]
[null,128,null,10,2]
[null,129,null,12,3]
[null,130,null,1,4]
[null,131,null,11,9]
[null,132,null,7,8]
[null,133]
[null,134]
[null,135]
[null,136]
[null,137]
[null,138]
[null,139]
[null,140]
[null,141]
[null,142]
[null,143]
[null,144]
[null,145]
[null,146]
[null,147]
[null,148]
[null,149]
[null,150]
[null,151]
[null,152]
[null,153]
[null,154]
[null,155]
[null,156]
[null,157]
[null,158]
[null,159]
[null,160]
[null,161]
[null,162]
[null,163]
[null,164]
[null,165]
[null,166]
[null,167]
[null,168]
[null,169]
[null,170]
[null,171]
[null,172]
[null,173]
[null,174]
[null,175]
[null,176]
[null,177]
[null,178]
[null,179]
[null,180]
[null,181]
[null,182]
[null,183]
[null,184]
[null,185]
[null,186]
[null,187]
[null,188]
[null,189]
[null,190]
[null,191]
[null,192]
[null,193]
[null,194]
[null,195]
[null,196]
[null,197]
[null,198]
[null,199]
[null,200]
[null,201]
[null,202]
[null,203]
[null,204]
[null,205]
[null,206]
[null,207]
[null,208]
[null,209]
[null,210]
[null,211]
[null,212]
[null,213]
[null,214]
[null,215]
[null,216]
[null,217]
[null,218]
[null,219]
[null,220]
[null,221]
[null,222]
[null,223]
[null,224]
[null,225]
[null,226]
[null,227]
[null,228]
[null,229]
[null,230]
[null,231]
[null,232]
[null,233]
[null,234]
[null,235]
[null,236]
[null,237]
[null,238]
[null,239]
[null,240]
[null,241]
[null,242]
[null,243]
[null,244]
[null,245]
[null,246]
[null,247]
[null,248]
[null,249]
[null,250]
[null,251]
[null,252]
[null,253]
[null,254]
[null,255]
[null,256]
[null,257]
[null,258]
[null,259]
[null,260]
[null,261]
[null,262]
[null,263]
[null,264]
[null,265]
[null,266]
[null,267]
[null,268]
[null,269]
[null,270]
[null,271]
[null,272]
[null,273]
[null,274]
[null,275]
[null,276]
[null,277]
[null,278]
[null,279]
[null,280]
[null,281]
[null,282]
[null,283]
[null,284]
[null,285]
[null,286]
[null,287]
[null,288]
[null,289]
[null,290]
[null,291]
[null,292]
[null,293]
[null,294]
[null,295]
[null,296]
[null,297]
[null,298]
[null,299]
[null,300]
[null,301]
[null,302]
[null,303]
[null,304]
[null,305]
[null,306]
[null,307]
[null,308]
[null,309]
[null,310]
[null,311]
[null,312]
[null,313]
[null,314]
[null,315]
[null,316]
[null,317]
[null,318]
[null,319]
[null,320]
[null,321]
[null,322]
[null,323]
[null,324]
[null,325]
[null,326]
[null,327]
[null,328]
[null,329]
[null,330]
[null,331]
[null,332]
[null,333]
[null,334]
[null,335]
[null,336]
[null,337]
[null,338]
[null,339]
[null,340]
[null,341]
[null,342]
[null,343]
[null,344]
[null,345]
[null,346]
[null,347]
[null,348]
[null,349]
[null,350]
[null,351]
[null,352]
[null,353]
[null,354]
[null,355]
[null,356]
[null,357]
[null,358]
[null,359]
[null,360]
[null,361]
[null,362]
[null,363]
[null,364]
[null,365]
[null,366]
[null,367]
[null,368]
[null,369]
[null,370]
[null,371]
[null,372]
[null,373]
[null,374]
[null,375]
[null,376]
[null,377]
[null,378]
[null,379]
[null,380]

{"sheet":"Language","index":1,"n_rows":37,"n_cols":15,"rows_kept":37,"cut":false,"hidden":false,"merged":[[2,3,3,3],[2,4,3,4],[2,5,3,5],[2,6,3,6],[2,7,3,7],[2,10,3,10],[2,11,3,11],[0,5,0,9],[0,11,0,12],[1,5,1,9],[2,8,3,8],[2,9,3,9]]}
[null,null,null,null,null,{"$f":"Language!$E$5","v":"Choose language"},null,null,null,null,null,{"$f":"Language!$E$11","v":"Click here and choose language:"},null,"english","←"]
[]
[null,"english",{"$f":"IF(AND($N$1<>B4,$N$1<>B5,$N$1<>B6,$N$1<>B7,$N$1<>B8,$N$1<>B9),1,0)","v":1},null,null,"english","spanish","italian","french","german","dutch","my language"]
[null,"spanish",{"$f":"IF($N$1=B4,1,0)","v":0}]
[null,"italian",0,null,{"$f":"IF($C$3,F5,IF($C$4,G5,IF($C$5,H5,IF($C$6,I5,IF($C$7,J5,IF($C$8,K5,IF(L5<>\"\",L5,F5)))))))","v":"Choose language"},"Choose language","Elección de la lengua","Scelta della lingua","Choix de langue","Wahl der Sprache","Kies taal"]
[null,"french",0,null,{"$f":"IF($C$3,F6,IF($C$4,G6,IF($C$5,H6,IF($C$6,I6,IF($C$7,J6,IF($C$8,K6,IF(L6<>\"\",L6,F6)))))))","v":"Instructions"},"Instructions","Instrucciones","Istruzioni","Instructions","Anleitung","Handleiding"]
[null,"german",0,null,"Create matchups","Create matchups","Crear enfrentamientos","Creare abbinamenti","Créer des correspondances","Spielpaarungen erzeugen","Match-ups maken"]
[null,"dutch",0,null,"Matchups","Matchups","Enfrentamientos","Abbinamenti","Matchs","Spielpaarungen","Match-ups"]
[null,"my language",0,null,"Team","Team","Equipo","Squadra","Équipe","Mannschaft","Team"]
[null,null,null,null,"1 = home game     0 = away game","1 = home game     0 = away game","1 = partido de local     0 = partido de visitante","1 = partita in casa     0 = partita in trasferta","1 = match à domicile     0 = match à l'extérieur","1 = Heimspiel     0 = Auswärtsspiel","1 = thuiswedstrijd     0 = uitwedstrijd"]
[null,null,null,null,"Click here and choose language:","Click here and choose language:","Haga clic aquí y elija el idioma:","Clicca qui e scegli la lingua:","Cliquez ici et choisissez la langue :","Hier klicken und Sprache wählen:","Klik hier en kies uw taal:"]
[null,null,null,null,"Number of teams:","Number of teams:","Número de equipos:","Numero di squadre:","Nombre d'équipes :","Anzahl der Teams:","Aantal ploegen:"]
[null,null,null,null,"With return matches:","With return matches:","Con repeticiones:","Con replay:","Avec rediffusions :","Mit Rückspielen","Met herhalingen:"]
[null,null,null,null,"Random order:","Random order:","Orden aleatorio:","Ordine casuale:","Ordre aléatoire:","Zufällige Reihenfolge:","Willekeurige volgorde:"]
[null,null,null,null,"Number of match weeks:","Number of match weeks:","Número de semanas de partido:","Numero di settimane di partite:","Nombre de semaines de match :","Anzahl der Spieltage:","Aantal wedstrijdweken:"]
[null,null,null,null,"Number of matches:","Number of matches:","Número de partidos:","Numero di partite:","Nombre de matchs :","Anzahl der Spiele:","aantal wedstrijden:"]
[null,null,null,null,"Match week","Match week","semana de partido","Settimana di partite","Semaine de match","Spieltag","Wedstrijdweek"]
[null,null,null,null,"Total:","Total:","Total:","Totale:","Total:","Summe:","Totaal:"]
[null,null,null,null,"Number of home games in the first half of the season:","Number of home games in the first half of the season:","Número de partidos en casa en la primera mitad de la temporada:","Numero di partite casalinghe nella prima metà della stagione:","Nombre de matchs à domicile en première partie de saison :","Anzahl der Heimspiele in der Hinrunde:","Aantal thuiswedstrijden in de eerste seizoenshelft:"]
[null,null,null,null,"Number of home games in the second half of the season:","Number of home games in the second half of the season:","Número de partidos en casa en la segunda mitad de la temporada:","Numero di partite casalinghe nella seconda parte della stagione:","Nombre de matchs à domicile en seconde partie de saison :","Anzahl der Heimspiele in der Rückrunde:","Aantal thuiswedstrijden in de tweede seizoenshelft:"]
[null,null,null,null,0]
[null,null,null,null,0]
[null,null,null,null,0]
[null,null,null,null,null,"Help"]
[null,null,null,null,"Enter the number of teams","Enter the number of teams","Ingrese el número de equipos","Inserisci il numero di squadre","Entrez le nombre d'équipes","1.  Anzahl der Teams eingeben","Vul het aantal teams in"]
[null,null,null,null,"Choose whether with or without return games","Choose whether with or without return games","Elige si con o sin juegos de devolución","Scegli se con o senza partite di ritorno","Scegli se con o senza partite di ritorno","2.  Auswahl, ob mit oder ohne\n      Rückspiele","Kies of je met of zonder terugspelen speelt"]
[null,null,null,null,"Choose whether random order (otherwise always the same order appears)","Choose whether random order (otherwise always the same order appears)","Elija si el orden es aleatorio (de lo contrario, siempre aparece el mismo orden)","Scegli se ordinare in modo casuale (altrimenti appare sempre lo stesso ordine)","Choisissez si l'ordre aléatoire (sinon toujours le même ordre apparaît)","3.  Auswahl, ob zufällige Reihenfolge\n      (ansonsten erscheint immer die\n      gleiche Reihenfolge)","Kies of willekeurige volgorde (anders verschijnt altijd dezelfde volgorde)"]
[null,null,null,null,"Copy the values in the green frame and paste them into the desired application","Copy the values in the green frame and paste them into the desired application","Copie los valores en el marco verde y péguelos en la aplicación deseada","Copia i valori nella cornice verde e incollali nell'applicazione desiderata","Copiez les valeurs dans le cadre vert et collez-les dans l'application souhaitée","4.  Werte im grünen Rahmen\n      kopieren und in der  gewünschten\n      Anwendung einfügen","Kopieer de waarden in het groene kader en plak ze in de gewenste applicatie"]
[null,null,null,null,0]
[null,null,null,null,0]
[null,null,null,null,0]
[null,null,null,null,0]
[null,null,null,null,0]
[null,null,null,null,0]
[null,null,null,null,0]
[null,null,null,null,0]
[null,null,null,null,0]